[Event "ESP-chT Div I 2018"]
[Site "Linares"]
[Date "2018.08.06"]
[Round "1"]
[White "Dvirnyy, Danyyil"]
[Black "Alsina Leal, Daniel"]
[Result "0-1"]
[ECO "A34"]
[WhiteElo "2496"]
[BlackElo "2480"]
[Annotator "ChessBase"]
[PlyCount "133"]
[EventDate "2018.08.06"]
[EventType "team-tourn"]
[EventCountry "ESP"]
[SourceTitle "playchess.com"]
[Source "ChessBase"]
[SourceQuality "1"]
[TimeControl "40/5400+30:1800+30"]

1. Nf3 {[%emt 0:00:00]} c5 {[%emt 0:00:00]} 2. c4 {[%emt 0:00:00]} Nf6 {[%emt 0:00:00]} 3. Nc3 {[%emt 0:00:57]} d5 {[%emt 0:00:23]} 4. cxd5 {[%emt 0:02:38]} Nxd5 {[%emt 0:00:07]} 5. g3 {[%emt 0:00:51]} Nc6 {[%emt 0:00:11]} 6. Bg2 {[%emt 0:00:40]} Nc7 {[%emt 0:00:07]} 7. O-O {[%emt 0:01:10]} e5 {[%emt 0:00:28]} 8. a3 {[%emt 0:01:47]} Be7 {[%emt 0:02:55]} 9. b4 O-O {[%emt 0:00:59]} 10. b5 {[%emt 0:10:37]} Nd4 {[%emt 0:01:42]} 11. e3 {[%emt 0:03:10]} Nxf3+ {[%emt 0:03:21]} 12. Qxf3 {[%emt 0:01:51]} Rb8 {[%emt 0:03:11]} 13. Rd1 {[%emt 0:15:25]} Be6 {[%emt 0:05:24]} 14. d4 {[%emt 0:19:47]} Qc8 {[%emt 0:14:49]} 15. Qe4 {[%emt 0:00:28]} exd4 {[%emt 0:04:25]} 16. exd4 {[%emt 0:00:16]} cxd4 {[%emt 0:00:13]} 17. Ne2 {[%emt 0:03:57]} Nxb5 {[%emt 0:03:00]} 18. Bf4 {[%emt 0:02:13]} Bd6 {[%emt 0:10:59]} 19. Bxd6 {[%emt 0:02:24]} Nxd6 {[%emt 0:00:05]} 20. Qxd4 {[%emt 0:00:11]} Nb5 {[%emt 0:04:12]} 21. Qb2 {[%emt 0:00:53]} Qe8 {[%emt 0:10:12]} 22. Nf4 {[%emt 0:02:36]} Nc7 {[%emt 0:08:58]} 23. Qb4 {[%emt 0:07:04]} b6 {[%emt 0:03:43]} 24. Qd6 {[%emt 0:05:15]} Na6 {[%emt 0:02:00]} 25. Nxe6 {[%emt 0:01:18]} fxe6 {[%emt 0:02:08]} 26. Re1 {[%emt 0:07:33]} Nc5 {[%emt 0:00:15]} 27. Bh3 {[%emt 0:00:20]} Rd8 {[%emt 0:02:47]} 28. Qe5 {[%emt 0:00:58]} Kh8 {[%emt 0:00:43]} 29. Qe3 {[%emt 0:03:51]} Rd3 {[%emt 0:02:20]} 30. Qe2 {[%emt 0:00:04]} Rdf3 {[%emt 0:00:55]} 31. Rf1 {[%emt 0:00:07]} Qa4 {[%emt 0:04:19]} 32. Bxe6 {[%emt 0:00:15]} Rxa3 {[%emt 0:00:46]} 33. Rxa3 {[%emt 0:00:08]} Qxa3 {[%emt 0:00:04]} 34. Bc4 {[%emt 0:00:24]} Qa4 {[%emt 0:02:55]} 35. Re1 {[%emt 0:00:37]} Qd7 {[%emt 0:01:02]} 36. Rd1 {[%emt 0:01:40]} Qe8 {[%emt 0:02:43]} 37. Qb2 {[%emt 0:00:39]} Qe7 {[%emt 0:00:48]} 38. Qd4 {[%emt 0:01:55]} Qf6 {[%emt 0:01:43]} 39. Qe3 {[%emt 0:01:00]} h6 {[%emt 0:00:15]} 40. h4 {[%emt 0:00:47]} Qf5 {[%emt 0:02:51]} 41. Rd6 {[%emt 0:31:13]} Kh7 {[%emt 0:31:50]} 42. Bd5 {[%emt 0:00:06]} Qg4 {[%emt 0:00:37]} 43. Kg2 {[%emt 0:00:32]} Qf5 {[%emt 0:00:20]} 44. Kg1 {[%emt 0:00:53]} a5 {[%emt 0:00:38]} 45. Qd4 {[%emt 0:00:58]} Qb1+ {[%emt 0:00:30]} 46. Kg2 {[%emt 0:00:15]} a4 {[%emt 0:00:29]} 47. Rc6 {[%emt 0:00:53]} a3 {[%emt 0:00:36]} 48. Rc7 {[%emt 0:00:22]} Qg6 {[%emt 0:00:13]} 49. Ra7 {[%emt 0:02:20]} Kh8 {[%emt 0:00:46]} 50. h5 {[%emt 0:00:45]} Qf6 {[%emt 0:00:31]} 51. Qxf6 {[%emt 0:00:43]} gxf6 {[%emt 0:00:07]} 52. Rxa3 {[%emt 0:00:30]} Rd8 {[%emt 0:00:27]} 53. Bf7 {[%emt 0:00:26]} Kg7 {[%emt 0:00:48]} 54. Bg6 {[%emt 0:00:06]} b5 {[%emt 0:00:33]} 55. Rc3 {[%emt 0:00:20]} Rd5 {[%emt 0:00:27]} 56. Ra3 {[%emt 0:00:33]} Rd7 {[%emt 0:00:38]} 57. Bf5 {[%emt 0:00:44]} Rb7 {[%emt 0:00:22]} 58. Rc3 {[%emt 0:00:14]} Na4 {[%emt 0:00:24]} 59. Rd3 {[%emt 0:00:04]} b4 {[%emt 0:00:42]} 60. Rd4 {[%emt 0:00:04]} Nc3 {[%emt 0:00:19]} 61. Rg4+ {[%emt 0:00:05]} Kf7 {[%emt 0:00:26]} 62. Bd3 {[%emt 0:00:27]} Ke6 {[%emt 0:00:40]} 63. Bc4+ {[%emt 0:02:34]} Ke5 {[%emt 0:00:36]} 64. Bb3 {[%emt 0:00:02]} Ne4 {[%emt 0:00:20]} 65. Rg6 {[%emt 0:00:53]} Nd2 {[%emt 0:00:26]} 66. Bd1 {[%emt 0:00:27]} b3 {[%emt 0:00:32]} 67. f4+ 0-1

[Event "ESP-chT Div I 2018"]
[Site "Linares"]
[Date "2018.08.06"]
[Round "1"]
[White "Gascon del Nogal, Jose Rafael"]
[Black "Quesada Perez, Yasser"]
[Result "1-0"]
[ECO "B40"]
[WhiteElo "2476"]
[BlackElo "2534"]
[Annotator "ChessBase"]
[PlyCount "103"]
[EventDate "2018.08.06"]
[EventType "team-tourn"]
[EventCountry "ESP"]
[SourceTitle "playchess.com"]
[Source "ChessBase"]
[SourceQuality "1"]
[TimeControl "40/5400+30:1800+30"]

1. e4 {[%emt 0:00:00]} c5 {[%emt 0:03:50]} 2. Nf3 {[%emt 0:00:19]} e6 {[%emt 0:00:11]} 3. d3 {[%emt 0:00:07]} d5 {[%emt 0:00:36]} 4. Qe2 {[%emt 0:00:08]} Nf6 {[%emt 0:02:20]} 5. g3 {[%emt 0:00:08]} Be7 {[%emt 0:00:28]} 6. Bg2 {[%emt 0:00:05]} O-O {[%emt 0:00:11]} 7. O-O {[%emt 0:00:06]} b5 {[%emt 0:03:14]} 8. Bg5 {[%emt 0:20:48]} Nc6 {[%emt 0:04:30]} 9. e5 {[%emt 0:02:03]} Nd7 {[%emt 0:00:20]} 10. h4 {[%emt 0:03:01]} a5 {[%emt 0:06:31]} 11. Re1 {[%emt 0:14:44]} b4 {[%emt 0:02:08]} 12. c4 {[%emt 0:06:46]} bxc3 {[%emt 0:00:11]} 13. bxc3 {[%emt 0:00:08]} Ba6 {[%emt 0:01:30]} 14. a4 {[%emt 0:14:18]} Rb8 {[%emt 0:09:04]} 15. Na3 {[%emt 0:00:21]} h6 {[%emt 0:03:51]} 16. Bxe7 {[%emt 0:00:06]} Qxe7 {[%emt 0:00:37]} 17. c4 {[%emt 0:05:42]} Nb4 {[%emt 0:03:33]} 18. Nb5 {[%emt 0:00:35]} Nb6 {[%emt 0:01:53]} 19. g4 {[%emt 0:04:47]} Bb7 {[%emt 0:12:20]} 20. Nd6 {[%emt 0:02:46]} dxc4 {[%emt 0:03:45]} 21. dxc4 {[%emt 0:00:04]} Bxf3 {[%emt 0:00:12]} 22. Bxf3 {[%emt 0:00:38]} Qxh4 {[%emt 0:00:07]} 23. Nb7 {[%emt 0:08:24]} h5 {[%emt 0:04:49]} 24. Ra3 {[%emt 0:04:51]} hxg4 {[%emt 0:17:05]} 25. Bg2 {[%emt 0:00:14]} g6 {[%emt 0:10:56]} 26. Rg3 {[%emt 0:04:38]} Nxa4 {[%emt 0:00:21]} 27. Rxg4 {[%emt 0:00:08]} Qh5 {[%emt 0:01:32]} 28. Bf3 {[%emt 0:00:23]} Nc3 {[%emt 0:01:17]} 29. Qd2 {[%emt 0:00:44]} Nba2 {[%emt 0:05:43]} 30. Rg3 {[%emt 0:02:40]} Qh8 {[%emt 0:00:39]} 31. Kg2 {[%emt 0:01:54]} a4 {[%emt 0:00:51]} 32. Qf4 {[%emt 0:02:48]} Qg7 {[%emt 0:00:32]} 33. Qf6 {[%emt 0:00:38]} Nb4 34. Nxc5 {[%emt 0:01:02]} Rbc8 {[%emt 0:01:16]} 35. Rh1 {[%emt 0:00:30]} Rxc5 {[%emt 0:00:34]} 36. Rgh3 {[%emt 0:00:02]} Qxf6 {[%emt 0:00:07]} 37. exf6 {[%emt 0:00:03]} Rg5+ {[%emt 0:00:28]} 38. Kf1 {[%emt 0:00:04]} Rh5 {[%emt 0:00:04]} 39. Bxh5 {[%emt 0:00:34]} Ne4 {[%emt 0:00:04]} 40. Bxg6 {[%emt 0:00:18]} Nxf6 {[%emt 0:00:07]} 41. Bc2 {[%emt 0:32:13]} Rc8 {[%emt 0:32:06]} 42. Rg3+ {[%emt 0:00:25]} Kf8 {[%emt 0:00:03]} 43. Rh8+ {[%emt 0:00:03]} Ke7 {[%emt 0:00:03]} 44. Rxc8 {[%emt 0:00:03]} Nxc2 {[%emt 0:00:04]} 45. Rc3 {[%emt 0:00:36]} Nd4 {[%emt 0:00:38]} 46. Ra3 {[%emt 0:00:33]} Ne4 {[%emt 0:00:11]} 47. Rxa4 {[%emt 0:00:25]} f5 {[%emt 0:00:16]} 48. c5 {[%emt 0:00:26]} Kd7 {[%emt 0:00:15]} 49. Rxd4+ {[%emt 0:01:28]} Kxc8 {[%emt 0:00:01]} 50. Rxe4 {[%emt 0:00:08]} fxe4 {[%emt 0:00:05]} 51. Ke2 {[%emt 0:00:01]} Kd7 {[%emt 0:00:36]} 52. Ke3 {[%emt 0:00:03]} 1-0

[Event "ESP-chT Div I 2018"]
[Site "Linares"]
[Date "2018.08.06"]
[Round "1"]
[White "Rubio Mejia, Luis Ignacio"]
[Black "Rodriguez Fontecha, Marcos"]
[Result "1-0"]
[ECO "D07"]
[WhiteElo "2442"]
[BlackElo "2329"]
[Annotator "NA"]
[PlyCount "63"]
[EventDate "2018.08.06"]
[EventType "team-tourn"]
[EventCountry "ESP"]
[SourceTitle "playchess.com"]
[Source "ChessBase"]
[SourceQuality "1"]
[TimeControl "40/5400+30:1800+30"]

1. d4 {[%emt 0:00:00]} d5 {[%emt 0:00:00]} 2. c4 {[%emt 0:00:01]} Nc6 {[%emt 0:00:00]} 3. Nf3 {[%emt 0:03:01]} e5 {[%emt 0:04:11]} 4. Nxe5 {[%emt 0:02:18]} Nxe5 {[%emt 0:00:16]} 5. dxe5 {[%emt 0:00:07]} d4 {[%emt 0:00:04]} 6. g3 {[%emt 0:02:37]} c6 {[%emt 0:00:10]} 7. Bg2 {[%emt 0:02:19]} Qa5+ {[%emt 0:03:39]} 8. Nd2 {[%emt 0:03:15]} Bg4 {[%emt 0:07:13]} 9. O-O {[%emt 0:13:52]} O-O-O {[%emt 0:06:06]} 10. Nf3 {[%emt 0:08:25]} Ne7 {[%emt 0:09:11]} 11. Ng5 {[%emt 0:29:34]} d3 {[%emt 0:26:00]} 12. Bf3 {[%emt 0:03:59]} Bxf3 {[%emt 0:08:50]} 13. exf3 {[%emt 0:08:09]} d2 {[%emt 0:06:34]} 14. Nxf7 {[%emt 0:02:19]} dxc1=Q {[%emt 0:02:19]} 15. Qxc1 {[%emt 0:00:32]} Ng6 {[%emt 0:04:09]} 16. Nxd8 {[%emt 0:03:44]} Qxd8 {[%emt 0:03:00]} 17. Qe3 {[%emt 0:05:40]} Qa5 {[%emt 0:02:57]} 18. f4 {[%emt 0:00:45]} Bc5 {[%emt 0:00:13]} 19. Qe2 {[%emt 0:01:25]} Rd8 {[%emt 0:04:31]} 20. Rad1 {[%emt 0:02:00]} Bd4 {[%emt 0:02:18]} 21. a3 {[%emt 0:02:49]} c5 {[%emt 0:01:08]} 22. Kg2 {[%emt 0:01:58]} Qa6 {[%emt 0:01:02]} 23. Rd2 {[%emt 0:00:58]} Rf8 {[%emt 0:00:26]} 24. Kg1 {[%emt 0:00:58]} Qe6 {[%emt 0:02:49]} 25. b4 {[%emt 0:00:47]} Bc3 {[%emt 0:04:30]} 26. Rd6 {[%emt 0:00:21]} Qh3 {[%emt 0:00:47]} 27. bxc5 {[%emt 0:00:45]} Ne7 {[%emt 0:00:33]} 28. Qd3 {[%emt 0:00:37]} Ba5 {[%emt 0:00:09]} 29. Rd1 {[%emt 0:00:32]} g5 {[%emt 0:00:30]} 30. Rd7 {[%emt 0:00:33]} Ng6 {[%emt 0:00:27]} 31. c6 {[%emt 0:00:22]} b5 {[%emt 0:00:51]} 32. Rxa7 {[%emt 0:00:32]} 1-0

[Event "ESP-chT Div I 2018"]
[Site "Linares"]
[Date "2018.08.06"]
[Round "1"]
[White "Franco Alonso, Alejandro"]
[Black "Vergara Anton, Diego"]
[Result "1/2-1/2"]
[ECO "A30"]
[WhiteElo "2410"]
[BlackElo "2022"]
[Annotator "NA"]
[PlyCount "86"]
[EventDate "2018.08.06"]
[EventType "team-tourn"]
[EventCountry "ESP"]
[SourceTitle "playchess.com"]
[Source "ChessBase"]
[SourceQuality "1"]
[TimeControl "40/5400+30:1800+30"]

1. c4 {[%emt 0:00:00]} c5 {[%emt 0:00:00]} 2. Nf3 {[%emt 0:00:00]} Nc6 {[%emt 0:00:11]} 3. Nc3 {[%emt 0:00:01]} g6 {[%emt 0:00:19]} 4. e3 {[%emt 0:00:10]} Bg7 {[%emt 0:01:22]} 5. d4 {[%emt 0:00:13]} cxd4 {[%emt 0:01:47]} 6. exd4 {[%emt 0:00:08]} d6 {[%emt 0:02:06]} 7. d5 {[%emt 0:06:39]} Nb8 {[%emt 0:12:45]} 8. h3 {[%emt 0:10:47]} Nf6 {[%emt 0:01:39]} 9. Bd3 {[%emt 0:00:35]} Nbd7 {[%emt 0:00:31]} 10. O-O {[%emt 0:00:36]} O-O {[%emt 0:03:46]} 11. Re1 {[%emt 0:04:15]} Nc5 {[%emt 0:02:59]} 12. Bc2 {[%emt 0:07:38]} e5 {[%emt 0:17:06]} 13. b4 {[%emt 0:05:58]} Ncd7 {[%emt 0:04:37]} 14. Ba3 {[%emt 0:05:37]} e4 {[%emt 0:06:53]} 15. Bxe4 {[%emt 0:06:43]} Nxe4 {[%emt 0:00:43]} 16. Nxe4 {[%emt 0:00:05]} Nb6 {[%emt 0:02:03]} 17. Rc1 {[%emt 0:05:19]} Bf5 {[%emt 0:03:36]} 18. Ng3 {[%emt 0:06:43]} Bd7 {[%emt 0:05:42]} 19. Qd2 {[%emt 0:04:44]} Re8 {[%emt 0:02:02]} 20. Rxe8+ {[%emt 0:05:31]} Bxe8 {[%emt 0:00:28]} 21. Bb2 {[%emt 0:02:55]} Rc8 {[%emt 0:02:29]} 22. Bxg7 {[%emt 0:00:42]} Kxg7 {[%emt 0:00:09]} 23. Ne4 {[%emt 0:01:17]} Rxc4 {[%emt 0:09:13]} 24. Rxc4 {[%emt 0:00:32]} Nxc4 {[%emt 0:00:12]} 25. Qd4+ {[%emt 0:01:59]} Ne5 {[%emt 0:00:17]} 26. Nxe5 {[%emt 0:01:50]} dxe5 {[%emt 0:01:59]} 27. Qxe5+ {[%emt 0:00:08]} f6 {[%emt 0:00:13]} 28. Qd4 {[%emt 0:10:24]} b6 {[%emt 0:07:47]} 29. a3 {[%emt 0:03:57]} Kf7 {[%emt 0:03:53]} 30. g4 {[%emt 0:05:03]} f5 {[%emt 0:02:48]} 31. gxf5 {[%emt 0:00:59]} gxf5 {[%emt 0:00:13]} 32. Ng3 {[%emt 0:00:09]} Qf6 {[%emt 0:02:02]} 33. Qf4 {[%emt 0:00:28]} Bd7 {[%emt 0:01:05]} 34. Kh2 {[%emt 0:02:06]} a5 {[%emt 0:01:26]} 35. d6 {[%emt 0:02:38]} axb4 {[%emt 0:00:50]} 36. axb4 {[%emt 0:00:05]} b5 {[%emt 0:00:42]} 37. Nf1 {[%emt 0:00:14]} Ke6 {[%emt 0:00:30]} 38. Ne3 {[%emt 0:00:32]} Qe5 {[%emt 0:00:32]} 39. Kg3 {[%emt 0:00:05]} Kxd6 {[%emt 0:00:56]} 40. h4 {[%emt 0:00:37]} Ke6 {[%emt 0:00:29]} 41. Nc2 {[%emt 0:31:27]} Qc3+ {[%emt 0:30:56]} 42. Ne3 {[%emt 0:00:25]} Qe5 {[%emt 0:00:04]} 43. Nc2 {[%emt 0:00:33]} Qc3+ {[%emt 0:00:02]} 1/2-1/2

[Event "ESP-chT Div I 2018"]
[Site "Linares"]
[Date "2018.08.06"]
[Round "1"]
[White "Martin Fuentes, Alberto"]
[Black "Plazuelo Pascual, Juan"]
[Result "1-0"]
[ECO "C03"]
[WhiteElo "2391"]
[BlackElo "2429"]
[Annotator "NA"]
[PlyCount "119"]
[EventDate "2018.08.06"]
[EventType "team-tourn"]
[EventCountry "ESP"]
[SourceTitle "playchess.com"]
[Source "ChessBase"]
[SourceQuality "1"]
[TimeControl "40/5400+30:1800+30"]

1. e4 {[%emt 0:00:00]} e6 {[%emt 0:00:00]} 2. d4 {[%emt 0:00:00]} d5 {[%emt 0:00:00]} 3. Nd2 {[%emt 0:00:00]} Be7 {[%emt 0:00:05]} 4. e5 {[%emt 0:00:00]} c5 {[%emt 0:00:33]} 5. c3 {[%emt 0:00:00]} cxd4 {[%emt 0:01:12]} 6. cxd4 {[%emt 0:00:00]} Qb6 {[%emt 0:00:17]} 7. Ndf3 {[%emt 0:00:33]} Bb4+ {[%emt 0:00:56]} 8. Bd2 {[%emt 0:00:39]} Nc6 {[%emt 0:00:33]} 9. Bxb4 {[%emt 0:09:25]} Qxb4+ {[%emt 0:00:09]} 10. Qd2 {[%emt 0:00:05]} Nge7 {[%emt 0:06:06]} 11. Bd3 {[%emt 0:01:56]} O-O {[%emt 0:04:25]} 12. Ne2 {[%emt 0:02:14]} Qxd2+ {[%emt 0:11:45]} 13. Nxd2 {[%emt 0:10:33]} f6 {[%emt 0:01:04]} 14. f4 {[%emt 0:01:39]} Bd7 {[%emt 0:03:59]} 15. a3 {[%emt 0:04:43]} a5 {[%emt 0:07:33]} 16. Rc1 {[%emt 0:06:22]} Be8 {[%emt 0:02:36]} 17. Nb3 {[%emt 0:02:31]} Bh5 {[%emt 0:17:51]} 18. a4 {[%emt 0:09:09]} fxe5 {[%emt 0:08:22]} 19. fxe5 {[%emt 0:01:50]} Rac8 {[%emt 0:11:59]} 20. Rc3 {[%emt 0:09:28]} Bg4 {[%emt 0:06:47]} 21. Ng3 {[%emt 0:11:58]} Ra8 {[%emt 0:03:27]} 22. h3 {[%emt 0:02:50]} Bf5 {[%emt 0:00:16]} 23. Bb5 {[%emt 0:00:25]} Bg6 {[%emt 0:01:41]} 24. Ne2 {[%emt 0:02:20]} Bf5 {[%emt 0:04:42]} 25. Nc5 {[%emt 0:03:57]} Nd8 {[%emt 0:01:58]} 26. O-O {[%emt 0:02:15]} Ng6 {[%emt 0:01:58]} 27. Nd7 {[%emt 0:02:12]} Rf7 {[%emt 0:00:08]} 28. Nb6 {[%emt 0:00:23]} Rb8 {[%emt 0:00:30]} 29. Nc8 {[%emt 0:00:47]} Be4 {[%emt 0:00:35]} 30. Rfc1 {[%emt 0:00:43]} Nh4 {[%emt 0:01:55]} 31. Nd6 {[%emt 0:01:29]} Rf8 {[%emt 0:00:01]} 32. Nxe4 {[%emt 0:01:06]} dxe4 {[%emt 0:00:02]} 33. Re3 {[%emt 0:00:10]} Nf5 {[%emt 0:00:28]} 34. Rxe4 {[%emt 0:00:15]} Nc6 {[%emt 0:00:01]} 35. Bc4 {[%emt 0:03:50]} Nd8 {[%emt 0:00:12]} 36. Rf1 {[%emt 0:00:46]} Ne7 {[%emt 0:01:40]} 37. Nf4 {[%emt 0:00:46]} Rc8 {[%emt 0:00:11]} 38. b3 {[%emt 0:02:03]} Rc6 {[%emt 0:00:49]} 39. Rf3 {[%emt 0:02:20]} Rb6 {[%emt 0:01:04]} 40. Rf2 {[%emt 0:01:50]} g6 {[%emt 0:00:42]} 41. g4 {[%emt 0:30:47]} Kg7 {[%emt 0:30:10]} 42. Re1 {[%emt 0:00:23]} Nec6 {[%emt 0:00:49]} 43. d5 {[%emt 0:00:38]} Nd4 {[%emt 0:00:40]} 44. dxe6 {[%emt 0:02:13]} N8xe6 {[%emt 0:00:37]} 45. Nxe6+ {[%emt 0:00:39]} Nxe6 {[%emt 0:00:02]} 46. Rd1 {[%emt 0:00:50]} Nc5 {[%emt 0:00:26]} 47. Rd5 {[%emt 0:01:35]} Rxf2 {[%emt 0:01:30]} 48. Kxf2 {[%emt 0:00:04]} Nxb3 {[%emt 0:00:03]} 49. Rd7+ {[%emt 0:00:04]} Kf8 {[%emt 0:00:08]} 50. e6 {[%emt 0:00:24]} Ke8 {[%emt 0:01:21]} 51. Bb5 {[%emt 0:01:57]} Nc5 {[%emt 0:00:39]} 52. Rxb7+ {[%emt 0:00:32]} Rxb5 {[%emt 0:00:25]} 53. Rxb5 {[%emt 0:00:04]} Nxa4 {[%emt 0:00:24]} 54. Ke3 {[%emt 0:00:47]} Ke7 {[%emt 0:00:26]} 55. Rxa5 {[%emt 0:00:23]} Nb6 {[%emt 0:00:31]} 56. Ra7+ {[%emt 0:00:15]} Kf6 {[%emt 0:00:31]} 57. g5+ {[%emt 0:00:21]} Kxg5 {[%emt 0:00:26]} 58. e7 {[%emt 0:00:18]} Nc4+ {[%emt 0:00:04]} 59. Kf2 {[%emt 0:00:17]} Nd6 {[%emt 0:00:50]} 60. Ra8 {[%emt 0:00:10]} 1-0

[Event "ESP-chT Div I 2018"]
[Site "Linares"]
[Date "2018.08.06"]
[Round "1"]
[White "Shvayger, Yuliya"]
[Black "Gonzalez Guedes, Iyan"]
[Result "1-0"]
[ECO "B54"]
[WhiteElo "2390"]
[BlackElo "1925"]
[Annotator "NA"]
[PlyCount "103"]
[EventDate "2018.08.06"]
[EventType "team-tourn"]
[EventCountry "ESP"]
[SourceTitle "playchess.com"]
[Source "ChessBase"]
[SourceQuality "1"]
[TimeControl "40/5400+30:1800+30"]

1. e4 {[%emt 0:00:00]} c5 {[%emt 0:00:00]} 2. Nf3 {[%emt 0:00:00]} d6 {[%emt 0:00:00]} 3. d4 {[%emt 0:00:55]} cxd4 {[%emt 0:00:00]} 4. Nxd4 {[%emt 0:00:04]} Nf6 {[%emt 0:00:00]} 5. f3 {[%emt 0:02:29]} e5 {[%emt 0:03:51]} 6. Nb3 {[%emt 0:00:33]} d5 {[%emt 0:02:51]} 7. Bg5 {[%emt 0:00:27]} Be6 {[%emt 0:05:42]} 8. Bxf6 {[%emt 0:03:40]} gxf6 {[%emt 0:00:17]} 9. exd5 {[%emt 0:00:06]} Qxd5 {[%emt 0:02:20]} 10. Qxd5 {[%emt 0:01:10]} Bxd5 {[%emt 0:00:08]} 11. Nc3 {[%emt 0:00:06]} Bxb3 {[%emt 0:04:01]} 12. Bb5+ {[%emt 0:16:58]} Nd7 {[%emt 0:06:48]} 13. axb3 {[%emt 0:00:14]} Bb4 {[%emt 0:00:56]} 14. O-O-O {[%emt 0:02:32]} O-O-O {[%emt 0:03:15]} 15. Nd5 {[%emt 0:00:51]} Bc5 {[%emt 0:03:34]} 16. Bxd7+ {[%emt 0:02:18]} Kxd7 {[%emt 0:01:36]} 17. Nxf6+ {[%emt 0:05:39]} Ke6 {[%emt 0:00:31]} 18. Ne4 {[%emt 0:01:42]} Be3+ {[%emt 0:01:10]} 19. Kb1 {[%emt 0:00:02]} f5 {[%emt 0:02:41]} 20. Nc3 {[%emt 0:00:59]} Rxd1+ {[%emt 0:11:28]} 21. Rxd1 {[%emt 0:00:57]} Rg8 {[%emt 0:01:34]} 22. g3 {[%emt 0:01:48]} h5 {[%emt 0:02:34]} 23. Nb5 {[%emt 0:09:17]} f4 {[%emt 0:10:59]} 24. Nc7+ {[%emt 0:05:19]} Kf5 {[%emt 0:01:21]} 25. Nd5 {[%emt 0:00:40]} Rg7 {[%emt 0:01:20]} 26. c3 {[%emt 0:05:10]} Bf2 {[%emt 0:06:22]} 27. gxf4 {[%emt 0:06:12]} exf4 {[%emt 0:00:31]} 28. Nb4 {[%emt 0:03:14]} Rg1 {[%emt 0:04:32]} 29. Kc2 {[%emt 0:01:01]} Rg2 {[%emt 0:04:40]} 30. Rd5+ {[%emt 0:01:12]} Kg6 {[%emt 0:00:47]} 31. Kd3 {[%emt 0:01:35]} Rxh2 {[%emt 0:02:22]} 32. Ke4 {[%emt 0:06:07]} Be3 {[%emt 0:01:22]} 33. Nd3 {[%emt 0:00:57]} h4 {[%emt 0:02:58]} 34. Ne5+ {[%emt 0:05:21]} Kg7 {[%emt 0:01:35]} 35. Rd7+ {[%emt 0:00:05]} Kf6 {[%emt 0:01:26]} 36. Rf7+ {[%emt 0:07:39]} Ke6 {[%emt 0:00:07]} 37. Rxb7 {[%emt 0:00:05]} Rxb2 {[%emt 0:01:18]} 38. Nd3 {[%emt 0:02:01]} Rc2 {[%emt 0:03:18]} 39. c4 {[%emt 0:00:04]} h3 {[%emt 0:01:24]} 40. Rh7 {[%emt 0:01:37]} Rc3 {[%emt 0:01:45]} 41. Rxh3 {[%emt 0:31:48]} Rxb3 42. Rh6+ {[%emt 0:00:21]} Kd7 {[%emt 0:31:08]} 43. Ne5+ {[%emt 0:02:55]} Ke7 {[%emt 0:02:06]} 44. Kd5 {[%emt 0:01:38]} Ra3 {[%emt 0:01:12]} 45. c5 {[%emt 0:00:19]} Rc3 {[%emt 0:01:49]} 46. Rh7+ {[%emt 0:00:54]} Kd8 {[%emt 0:00:41]} 47. c6 {[%emt 0:00:28]} Rc1 {[%emt 0:01:41]} 48. Rd7+ {[%emt 0:03:11]} Kc8 {[%emt 0:00:19]} 49. Nc4 {[%emt 0:00:06]} Rd1+ {[%emt 0:01:00]} 50. Ke6 {[%emt 0:00:01]} Rc1 {[%emt 0:01:01]} 51. Nd6+ {[%emt 0:00:23]} Kb8 {[%emt 0:00:03]} 52. c7+ {[%emt 0:00:34]} 1-0

[Event "ESP-chT Div I 2018"]
[Site "Linares"]
[Date "2018.08.06"]
[Round "1"]
[White "Alonso Moyano, Jonathan"]
[Black "Barbot, Pierre"]
[Result "1/2-1/2"]
[ECO "C44"]
[WhiteElo "2388"]
[BlackElo "2420"]
[Annotator "NA RC"]
[PlyCount "82"]
[EventDate "2018.08.06"]
[EventType "team-tourn"]
[EventCountry "ESP"]
[SourceTitle "playchess.com"]
[Source "ChessBase"]
[SourceQuality "1"]
[TimeControl "40/5400+30:1800+30"]

1. e4 {[%emt 0:00:00]} e5 {[%emt 0:00:00]} 2. Nf3 {[%emt 0:00:00]} Nc6 {[%emt 0:00:00]} 3. d4 {[%emt 0:00:00]} exd4 {[%emt 0:00:00]} 4. Nxd4 {[%emt 0:00:02]} g6 {[%emt 0:00:00]} 5. Nxc6 {[%emt 0:04:01]} bxc6 {[%emt 0:00:00]} 6. Bd2 {[%emt 0:01:02]} Bg7 {[%emt 0:00:47]} 7. Bc3 {[%emt 0:00:12]} Nf6 {[%emt 0:00:04]} 8. Bd3 {[%emt 0:05:06]} O-O {[%emt 0:00:53]} 9. O-O {[%emt 0:00:07]} d5 {[%emt 0:11:31]} 10. Nd2 {[%emt 0:06:04]} Rb8 {[%emt 0:00:35]} 11. a3 {[%emt 0:08:58]} dxe4 {[%emt 0:09:06]} 12. Nxe4 {[%emt 0:00:31]} Nxe4 {[%emt 0:00:04]} 13. Bxe4 {[%emt 0:00:12]} Bxc3 {[%emt 0:00:04]} 14. bxc3 {[%emt 0:00:11]} Qf6 {[%emt 0:16:31]} 15. Qd4 {[%emt 0:03:20]} Qxd4 {[%emt 0:00:03]} 16. cxd4 {[%emt 0:00:07]} Rd8 {[%emt 0:00:02]} 17. Rfd1 {[%emt 0:02:22]} Rb2 {[%emt 0:01:58]} 18. h3 {[%emt 0:07:15]} Be6 {[%emt 0:04:21]} 19. Bxc6 {[%emt 0:05:09]} Rxc2 {[%emt 0:00:04]} 20. Bf3 {[%emt 0:00:29]} Bd5 {[%emt 0:03:29]} 21. Bxd5 {[%emt 0:03:19]} Rxd5 {[%emt 0:00:01]} 22. Rdc1 {[%emt 0:00:08]} Rxc1+ {[%emt 0:00:59]} 23. Rxc1 {[%emt 0:00:06]} Rxd4 {[%emt 0:00:03]} 24. Rxc7 {[%emt 0:00:08]} Ra4 {[%emt 0:00:02]} 25. Rc3 {[%emt 0:00:08]} h5 {[%emt 0:00:03]} 26. Kf1 {[%emt 0:02:49]} Kg7 {[%emt 0:00:36]} 27. Ke2 {[%emt 0:01:37]} Kf6 {[%emt 0:00:21]} 28. Re3 {[%emt 0:02:10]} Kf5 {[%emt 0:00:45]} 29. g3 {[%emt 0:12:13]} Re4 {[%emt 0:04:19]} 30. Kd3 {[%emt 0:00:55]} Rxe3+ {[%emt 0:00:48]} 31. fxe3 {[%emt 0:02:12]} Ke5 {[%emt 0:01:38]} 32. e4 {[%emt 0:00:18]} Kf6 {[%emt 0:14:57]} 33. Kd4 {[%emt 0:06:34]} Kg5 {[%emt 0:03:12]} 34. Ke5 {[%emt 0:00:32]} f5 {[%emt 0:04:52]} 35. Kd4 {[%emt 0:00:17]} fxe4 {[%emt 0:00:21]} 36. Kxe4 {[%emt 0:09:47]} Kf6 {[%emt 0:00:32]} 37. Kd5 {[%emt 0:00:06]} Kf5 {[%emt 0:01:56]} 38. a4 {[%emt 0:00:38]} a5 {[%emt 0:00:27]} 39. Kc5 {[%emt 0:00:51]} g5 {[%emt 0:00:14]} 40. Kd4 {[%emt 0:05:18]} h4 {[%emt 0:01:15]} 41. gxh4 {[%emt 0:30:05]} gxh4 {[%emt 0:30:03] Ke4+ Ke5+} 1/2-1/2